bitfinex/quotes_ETHUSD_20240722
["timestamp","ask_amount","ask_price","bid_price","bid_amount"]
[1721618126067,2.82933,3534.4,3534.3,0.08641995]
[1721618126264,2.82933,3534.4,3534.2,0.08643125]
[1721618126535,2.82933,3534.4,3534.3,0.08641995]
[1721618126773,2.82933,3534.4,3533.8,3.1053821]
[1721618126961,2.82933,3534.4,3533.9,0.67999136]
[1721618127462,3.0,3534.5,3533.9,0.67999136]
[1721618127636,5.82928,3534.5,3533.9,0.67999136]
[1721618128546,2.4007,3534.4,3533.8,0.6139821]
[1721618128781,2.4007,3534.4,3533.9,0.08655869]
[1721618129275,5.23007,3534.4,3533.7,2.82988]
[1721618129437,5.23007,3534.4,3534.0,0.08654738]
[1721618129637,5.23007,3534.4,3533.7,2.82988]
[1721618129843,5.23007,3534.4,3534.1,0.08653608]
[1721618130037,5.23007,3534.4,3533.7,2.82988]
[1721618130038,2.82937,3534.4,3533.7,2.82988]
[1721618130243,2.82937,3534.4,3534.2,0.08652478]
[1721618130565,2.82942,3534.3,3533.6,2.4381]
[1721618130772,2.82931,3534.5,3533.7,0.08658129]
[1721618131077,5.32247,3534.6,3533.8,0.25246813]
[1721618131264,3.0,3534.5,3533.8,0.25246813]
[1721618131642,2.82941,3534.3,3533.8,0.25246813]
[1721618132070,3.0,3534.5,3533.9,0.08655869]
[1721618132450,3.0,3534.5,3533.8,0.25246813]
[1721618132780,2.82939,3534.4,3533.8,0.25246813]
[1721618133278,2.82942,3534.3,3533.8,0.25246813]
[1721618133442,2.8295,3534.2,3533.8,0.25246813]
[1721618133639,2.8295,3534.2,3533.6,2.4381]
[1721618133640,2.82937,3534.4,3533.9,0.08655869]
[1721618134052,2.82937,3534.4,3533.6,5.26801]
[1721618134393,2.82937,3534.4,3533.7,0.08658129]
[1721618134870,2.82937,3534.4,3533.6,5.26801]
[1721618135044,2.82937,3534.4,3533.8,0.08656999]
[1721618135243,2.82937,3534.4,3533.7,0.08658129]
[1721618135436,2.82937,3534.4,3533.8,0.81845913]
[1721618135840,2.82937,3534.4,3533.9,0.08655869]
[1721618136081,2.82937,3534.4,3533.8,0.81845913]
[1721618136288,2.82942,3534.3,3533.8,0.81845913]
[1721618136673,2.82942,3534.3,3533.9,0.08655869]
[1721618137070,2.82942,3534.3,3533.8,0.81845913]
[1721618137277,2.82957,3534.1,3534.0,0.08654738]
[1721618137786,2.82957,3534.1,3533.6,2.4381]
[1721618137945,2.82957,3534.1,3534.0,0.08654738]
[1721618138145,2.82957,3534.1,3533.6,2.4381]
[1721618138344,3.0,3534.5,3533.7,0.08658129]
[1721618138554,2.83003,3533.6,3532.9,2.4633]
[1721618138757,2.83006,3533.5,3533.0,0.08379246]
[1721618138968,2.83014,3533.4,3533.0,0.62156271]
[1721618139217,2.83022,3533.3,3533.0,0.08379246]
[1721618139385,2.8303,3533.2,3533.0,0.08379246]
[1721618139891,2.4243,3533.8,3532.5,2.389]
[1721618139892,2.83037,3533.1,3532.5,2.389]
[1721618140592,2.83051,3533.0,3532.2,5.22006]
[1721618141010,2.3878,3533.2,3532.2,2.389]
[1721618141546,2.3878,3533.2,3532.2,2.911014]
[1721618142163,2.83077,3532.6,3532.2,0.522014]
[1721618143495,2.83077,3532.6,3531.7,2.2548]
[1721618143802,9.8678,3533.2,3531.7,2.2548]
[1721618144095,2.83111,3532.2,3531.7,2.2548]
[1721618146711,2.83126,3532.0,3531.7,2.2548]
[1721618147968,2.83111,3532.2,3531.7,2.2548]
[1721618148162,2.83102,3532.3,3531.7,2.2548]
[1721618148163,2.83102,3532.3,3531.7,2.763452]
[1721618149284,2.83088,3532.5,3531.8,0.08403281]
[1721618149493,2.83071,3532.7,3531.8,0.08403281]
[1721618149681,10.31061,3532.8,3531.8,2.91544281]
[1721618149864,3.0,3532.7,3532.1,2.83117]
[1721618150161,3.0,3532.7,3532.2,0.08415139]
[1721618150359,3.0,3532.7,3531.9,3.39921948]
[1721618150579,3.0,3532.7,3532.0,2.91541401]
[1721618150779,3.0,3532.7,3532.1,3.17948035]
[1721618151012,3.0,3532.7,3532.2,0.08415139]
[1721618151196,5.8307,3532.7,3532.2,0.08415139]
[1721618151999,2.8307,3532.7,3532.2,0.08415139]
[1721618152408,2.83055,3532.9,3532.2,0.08415139]
[1721618152567,2.83046,3533.0,3532.3,2.83101]
[1721618152766,10.31027,3533.3,3532.4,2.71991235]
[1721618152767,2.83033,3533.2,3532.4,2.71991235]
[1721618153170,7.48,3533.3,3532.6,2.83077]
[1721618153418,7.48,3533.3,3532.9,2.83051]
[1721618153792,7.33836372,3533.3,3533.0,0.08433611]
[1721618153993,2.83013,3533.4,3532.6,2.83077]
[1721618154192,2.83013,3533.4,3532.7,0.63099196]
[1721618155071,2.83022,3533.3,3532.7,0.63099196]
[1721618155277,2.83035,3533.2,3532.7,0.63099196]
[1721618155506,2.83035,3533.2,3532.7,0.08437004]
[1721618155889,5.21861,3533.3,3532.4,5.46633917]
[1721618156089,2.83037,3533.1,3532.8,0.08433257]
[1721618156319,2.83053,3532.9,3532.2,2.83109]
[1721618156517,2.83053,3532.9,3532.2,3.66307404]
[1721618156810,2.3884,3533.3,3532.3,2.831]
[1721618156811,2.83047,3533.0,3532.3,2.831]
[1721618157496,2.83032,3533.2,3532.4,2.83091]
[1721618157690,2.83032,3533.2,3532.2,0.83198404]
[1721618157691,2.83032,3533.2,3532.5,2.83083]
[1721618158832,10.16842372,3533.5,3532.6,2.83076]
[1721618159002,7.33836372,3533.5,3532.8,2.83061]
[1721618159198,10.16844372,3533.5,3532.8,2.83061]
[1721618159437,7.33836372,3533.5,3532.9,2.4602]
[1721618159742,10.16842372,3533.5,3532.9,2.4602]
[1721618159912,7.33836372,3533.5,3532.9,5.29072]
[1721618160233,2.82999,3533.6,3533.0,0.5573796]
[1721618160437,2.83013,3533.4,3532.7,3.113726]
[1721618162997,2.2734,3533.1,3532.3,2.2933]
[1721618163197,2.2734,3533.5,3532.3,2.2933]
[1721618163435,2.83023,3533.3,3532.6,2.83074]
[1721618163635,2.83023,3533.3,3532.6,0.795495]
[1721618163811,2.83032,3533.2,3532.7,0.08425576]
[1721618164232,2.83014,3533.4,3532.7,0.08425576]
[1721618164233,2.83022,3533.3,3532.7,0.08425576]
[1721618164815,2.83031,3533.2,3532.4,2.83093]
[1721618165024,2.83039,3533.1,3532.8,0.08425409]
[1721618165334,2.83039,3533.1,3532.4,2.83093]
[1721618165642,2.83039,3533.1,3532.5,0.512423]
[1721618165944,5.66049,3533.3,3532.5,3.42753102]
[1721618166236,2.83013,3533.4,3532.5,0.59671102]
[1721618166436,2.83039,3533.1,3532.5,0.59671102]
[1721618166641,2.83039,3533.1,3532.6,0.5720991]
[1721618167011,2.83039,3533.1,3532.7,0.08425852]
[1721618167841,2.83047,3533.0,3532.7,0.08425852]
[1721618169039,2.83021,3533.3,3532.7,0.08425852]
[1721618169040,2.83032,3533.2,3532.7,0.08425852]
[1721618169292,2.83032,3533.2,3532.7,0.43298628]
[1721618169405,2.83021,3533.3,3532.7,0.43298628]
[1721618169610,2.83038,3533.1,3532.7,0.43298628]
[1721618170318,2.83047,3533.0,3532.7,0.08425852]
[1721618170535,2.83055,3532.9,3532.7,0.08425852]
[1721618170957,2.83055,3532.9,3532.3,2.2933]
[1721618171467,2.83055,3532.9,3532.4,0.08429658]
[1721618172424,2.83041,3533.1,3532.4,0.08429658]
[1721618172771,9.61176372,3533.5,3532.5,0.23775966]
[1721618172772,2.83027,3533.3,3532.5,0.23775966]
[1721618173148,2.83027,3533.3,3532.6,0.0842836]
[1721618173534,2.83027,3533.3,3532.5,0.23775966]
[1721618173769,2.83027,3533.3,3532.7,2.83069]
[1721618173975,2.83027,3533.3,3532.8,0.30684497]
[1721618174178,2.83027,3533.3,3532.8,0.39110595]
[1721618176068,7.33836372,3533.5,3532.9,2.4171]
[1721618176374,7.33836372,3533.5,3532.8,0.39110595]
[1721618176375,7.33836372,3533.5,3533.0,0.08423836]
[1721618176554,7.33836372,3533.5,3532.8,0.30684497]
[1721618176796,7.33836372,3533.5,3532.9,0.63971317]
[1721618176969,2.83022,3533.3,3532.9,0.63971317]
[1721618177458,2.83029,3533.2,3532.9,0.08424967]
[1721618178369,2.83029,3533.2,3532.6,2.4171]
[1721618178530,2.3733,3533.4,3532.6,5.24787]
[1721618178531,5.20347,3533.4,3532.6,5.24787]
[1721618178734,5.20347,3533.4,3532.7,0.08428465]
[1721618178735,2.83021,3533.3,3532.7,0.08428465]
[1721618178933,2.83021,3533.3,3532.7,0.64127608]
[1721618184373,2.83021,3533.3,3532.7,0.55699143]
[1721618184579,2.3733,3533.4,3532.7,0.55699143]
[1721618184580,2.83032,3533.2,3532.7,0.55699143]
[1721618184753,2.83032,3533.2,3532.8,0.08427334]
[1721618187064,2.83037,3533.1,3532.8,0.08427334]
[1721618187565,2.83047,3533.0,3532.8,0.08427334]
[1721618187872,2.3733,3533.4,3532.8,0.08427334]
[1721618187873,2.83053,3532.9,3532.8,0.08427334]
[1721618188240,2.83053,3532.9,3532.4,2.4784]
[1721618188544,2.83053,3532.9,3532.5,0.530939]
[1721618188737,2.83053,3532.9,3532.6,0.08431389]
[1721618192661,2.83038,3533.1,3532.6,0.08431389]
[1721618192990,2.3733,3533.4,3532.6,0.08431389]
[1721618192991,2.83046,3533.0,3532.6,0.08431389]
[1721618193146,2.83046,3533.0,3532.4,5.30932]
[1721618193345,2.83046,3533.0,3532.5,0.530932]
[1721618193550,2.83046,3533.0,3532.5,0.61525031]
[1721618194465,2.83054,3532.9,3532.5,0.61525031]
[1721618195369,2.83061,3532.8,3532.5,0.08431831]
[1721618195586,2.3445,3532.9,3532.5,0.08431831]
[1721618195587,2.83077,3532.6,3532.5,0.08431831]
[1721618195748,2.83088,3532.5,3531.9,0.58934037]
[1721618196063,2.83069,3532.7,3532.0,5.29215226]
[1721618196265,2.83069,3532.7,3532.1,2.46091226]
[1721618196471,2.83069,3532.7,3532.2,0.98434192]
[1721618196781,2.83069,3532.7,3532.0,2.83124]
[1721618197094,5.17503,3532.9,3532.2,2.83106]
[1721618197384,5.17503,3532.9,3532.3,0.5881261]
[1721618198096,2.83062,3532.8,3532.3,0.5881261]
[1721618198291,2.83038,3533.1,3532.4,2.2599]
[1721618198599,2.83038,3533.1,3532.4,5.0908]
[1721618198806,2.83038,3533.1,3532.5,0.98425944]
[1721618198975,2.83038,3533.1,3532.4,5.0908]
[1721618199170,2.83038,3533.1,3532.5,0.984257]
[1721618199472,2.83054,3532.9,3532.4,3.19941189]
[1721618200206,2.83042,3533.1,3532.4,3.19941189]
[1721618200362,2.83042,3533.1,3532.4,6.03034189]
[1721618201988,2.83042,3533.1,3532.5,0.9842389]
[1721618202167,2.83042,3533.1,3532.4,6.03034189]
[1721618202378,2.83042,3533.1,3532.5,0.98423392]
[1721618202683,2.83042,3533.1,3532.4,6.03034189]
[1721618202997,2.83042,3533.1,3532.5,1.92932615]
[1721618203186,2.83042,3533.1,3532.5,0.94507723]
[1721618204403,9.62716372,3533.5,3532.5,0.94507723]
[1721618204562,1.47832598,3533.6,3532.7,2.322]
[1721618204905,2.2634,3533.8,3532.9,2.83048]
[1721618205089,2.2634,3533.8,3532.8,2.46049648]
[1721618205090,2.82998,3533.6,3533.0,0.98413253]
[1721618205406,8.8166897,3534.0,3532.7,5.74197037]
[1721618205407,2.4717,3533.4,3532.7,0.58934037]
[1721618205590,2.4717,3533.4,3532.6,2.83075]
[1721618205591,2.8303,3533.2,3532.8,0.98416087]
[1721618205759,2.8303,3533.2,3532.6,3.42009037]
[1721618205966,2.8303,3533.2,3532.7,2.4604533]
[1721618206160,2.8303,3533.2,3532.6,0.95278889]
[1721618206394,2.8303,3533.2,3532.7,2.46046405]
[1721618206605,2.8303,3533.2,3532.6,0.95278889]
[1721618206822,2.8303,3533.2,3532.7,2.46046981]
[1721618207098,2.8303,3533.2,3532.6,0.95278889]
[1721618207307,2.8303,3533.2,3532.7,1.66078546]
[1721618207466,2.8303,3533.2,3532.7,0.67659793]
[1721618207667,2.83038,3533.1,3532.7,0.67659793]
[1721618207992,2.83038,3533.1,3532.4,5.22388]
[1721618207993,2.83038,3533.1,3532.4,5.81322037]
[1721618208204,2.83038,3533.1,3532.5,2.46053573]
[1721618208388,2.83038,3533.1,3532.6,2.46052631]
[1721618208581,2.83038,3533.1,3532.7,0.98419674]
[1721618208776,2.83038,3533.1,3532.5,0.58934037]
[1721618209126,2.83026,3533.3,3532.6,2.54482156]
[1721618209278,2.83026,3533.3,3532.6,2.9151004]
[1721618209477,2.83026,3533.3,3532.7,0.98420173]
[1721618209685,2.8303,3533.2,3532.7,0.08431909]
[1721618210298,2.8303,3533.2,3532.5,0.95281889]
[1721618210506,2.8303,3533.2,3532.8,0.08430778]
[1721618210723,2.8303,3533.2,3532.6,0.95970493]
[1721618210926,2.8303,3533.2,3532.9,0.08429647]
[1721618211130,2.8303,3533.2,3532.6,0.95970493]
[1721618211732,2.8303,3533.2,3532.7,0.08427365]
[1721618213788,2.83047,3533.0,3532.7,0.08427365]
[1721618214141,2.83047,3533.0,3532.3,3.42035037]
[1721618214393,2.83047,3533.0,3532.8,0.08426923]
[1721618214556,2.83038,3533.1,3532.4,3.77391989]
[1721618214736,2.83038,3533.1,3532.9,0.08425792]
[1721618215045,2.83038,3533.1,3532.4,4.36326026]
[1721618215250,5.66082,3533.1,3532.4,4.36326026]
[1721618215406,2.83038,3533.1,3532.5,2.46056228]
[1721618215604,2.83038,3533.1,3532.4,3.77391989]
[1721618215845,5.16329,3533.2,3532.5,2.5449782]
[1721618216015,2.83055,3532.9,3532.5,0.08432519]
[1721618216211,2.83055,3532.9,3532.3,3.42034037]
[1721618216416,2.83055,3532.9,3532.4,2.54500948]
[1721618216642,2.8304,3533.1,3532.5,0.98427635]
[1721618216832,2.8304,3533.1,3532.4,0.0843186]
[1721618216833,2.8304,3533.1,3532.4,2.9152486]
[1721618217037,2.8304,3533.1,3532.5,1.06858319]
[1721618217239,2.8304,3533.1,3532.5,0.08430729]
[1721618218114,5.16329,3533.2,3532.5,0.08430729]
[1721618218115,2.83047,3533.0,3532.5,0.08430729]
[1721618218319,2.83047,3533.0,3532.3,2.831]
[1721618218518,2.83047,3533.0,3532.6,0.08430562]
[1721618218767,2.83047,3533.0,3532.4,0.85461004]
[1721618218947,2.83047,3533.0,3532.7,0.08429431]
[1721618219154,2.83047,3533.0,3532.4,0.85461004]
[1721618219403,2.83047,3533.0,3532.8,0.084283]
[1721618219554,2.83047,3533.0,3532.4,0.85461004]
[1721618219726,2.83047,3533.0,3532.9,0.08428132]
[1721618219928,2.83047,3533.0,3532.4,0.85461004]
[1721618220262,2.83056,3532.9,3532.4,0.85461004]
[1721618220420,2.83056,3532.9,3532.2,2.88394037]
[1721618220421,2.83056,3532.9,3532.5,0.08432244]
[1721618220733,2.83056,3532.9,3532.2,2.83109]
[1721618221058,2.83056,3532.9,3532.3,0.98434449]
[1721618221370,2.83056,3532.9,3532.3,0.08434506]
[1721618222273,2.2723,3532.7,3532.3,0.08434506]
[1721618222470,1.4761792,3533.4,3532.4,2.83093]
[1721618222471,10.16873372,3533.2,3532.4,2.83093]
[1721618222621,7.33836372,3533.2,3532.1,5.76731037]
[1721618222821,2.8305,3533.0,3532.3,2.83098]
[1721618223222,2.8305,3533.0,3532.4,0.08437505]
[1721618223716,2.8305,3533.0,3532.4,2.91530505]
[1721618223918,7.33836372,3533.2,3532.6,2.83077]
[1721618224146,10.16866372,3533.2,3532.5,2.91521338]
[1721618224344,10.16866372,3533.2,3532.7,0.08435076]
[1721618224549,10.16866372,3533.2,3532.6,0.08434555]
[1721618224762,10.16866372,3533.2,3532.8,0.08432292]
[1721618224974,2.83037,3533.1,3532.7,0.08433423]
[1721618225138,2.83037,3533.1,3532.9,0.08431161]
[1721618225327,2.83037,3533.1,3532.8,0.08432292]
[1721618225685,2.83037,3533.1,3532.4,2.83093]
[1721618225870,2.83037,3533.1,3532.9,0.08431161]
[1721618226267,2.83037,3533.1,3532.4,2.83093]
[1721618226422,2.83037,3533.1,3533.0,0.08430031]
[1721618227319,2.83037,3533.1,3533.0,0.08429617]
[1721618227455,2.83037,3533.1,3532.4,2.83093]
[1721618227807,8.81564511,3533.6,3531.9,1.97627809]
[1721618227808,2.83069,3532.7,3532.2,0.58934037]
[1721618228103,2.3154,3533.1,3531.9,0.58934037]
[1721618228305,2.3154,3532.2,3531.6,3.42090037]
[1721618228462,2.3154,3532.2,3531.7,2.4611983]
[1721618228798,2.3154,3532.2,3531.8,0.54070021]
[1721618231165,2.83107,3532.3,3531.8,0.54070021]
[1721618232367,5.16716,3532.5,3531.8,3.37209021]
[1721618232563,2.3363,3532.5,3532.0,2.83125]
[1721618232800,2.83078,3532.6,3532.0,2.83125]
[1721618233006,2.83078,3532.6,3532.0,3.68355302]
[1721618233981,2.83078,3532.6,3532.0,0.85230302]
[1721618234188,2.83078,3532.6,3531.8,3.37208021]
[1721618234807,2.83078,3532.6,3531.9,2.83132]
[1721618237317,12.45407372,3532.8,3531.9,2.83132]
[1721618237534,2.8307,3532.7,3532.0,2.83124]
[1721618237715,1.47598245,3533.2,3532.5,2.83085]
[1721618237716,2.3089,3533.1,3532.5,2.83085]
[1721618238240,5.13927,3533.1,3532.5,2.83085]
[1721618239246,5.13927,3533.1,3532.6,0.08441441]
[1721618239559,5.13927,3533.1,3532.5,2.83085]
[1721618239767,5.13927,3533.1,3532.7,0.0844031]
[1721618240129,5.13927,3533.1,3532.5,2.83085]
[1721618240341,5.13927,3533.1,3532.8,0.08439179]
[1721618240546,5.13927,3533.1,3532.5,2.83085]
[1721618240860,5.13927,3533.1,3532.9,0.08438048]
[1721618241060,5.13927,3533.1,3532.5,2.83085]
[1721618241444,5.13927,3533.1,3532.6,0.08441441]
[1721618242223,7.33836372,3533.7,3533.0,2.83044]
[1721618242424,2.3307,3533.8,3533.1,2.83035]
[1721618242633,2.3307,3533.8,3533.1,0.08435787]
[1721618242865,2.3307,3533.8,3533.2,2.83028]
[1721618243364,2.3307,3533.8,3533.3,2.91453525]
[1721618243571,10.16786372,3534.2,3533.5,2.83004]
[1721618243929,10.16786372,3534.2,3533.6,0.08423938]
[1721618243930,2.82958,3534.1,3533.6,0.08423938]
[1721618244131,10.16787372,3534.2,3533.4,2.83005]
[1721618246159,7.33836372,3534.2,3533.3,0.57448153]
[1721618246367,2.82979,3533.9,3533.5,0.08406891]
[1721618246560,2.82979,3533.9,3533.2,2.83028]
[1721618246765,2.82979,3533.9,3533.6,0.08407413]
[1721618247072,2.82979,3533.9,3533.2,2.83028]
[1721618247374,2.82979,3533.9,3533.7,0.08406282]
[1721618247570,2.82958,3534.1,3533.3,2.83019]
[1721618247874,2.82958,3534.1,3533.4,2.83012]
[1721618248173,7.33836372,3534.2,3533.5,2.83005]
[1721618248484,7.33836372,3534.2,3533.6,2.82995]
[1721618248648,7.33836372,3534.2,3533.6,2.91402963]
[1721618248982,2.3307,3534.3,3533.7,2.82988]
[1721618249147,2.3307,3534.3,3533.7,3.63390996]
[1721618249472,2.3307,3534.3,3533.8,0.08404601]
[1721618250941,2.82933,3534.4,3533.8,0.08404601]
[1721618252474,2.82933,3534.4,3533.6,2.82996]
[1721618252872,2.82933,3534.4,3533.7,0.08401327]
[1721618253281,2.82933,3534.4,3533.7,2.91389327]
[1721618254776,2.82941,3534.3,3533.7,0.08401327]
[1721618255096,2.82941,3534.3,3533.4,5.12642]
[1721618255300,2.82941,3534.3,3533.5,0.65318796]
[1721618255819,2.82964,3534.1,3533.5,0.08393956]
[1721618257002,2.82964,3534.1,3533.5,2.91398956]
[1721618259706,2.3469,3534.2,3533.5,2.91398956]
[1721618260312,2.3469,3534.2,3533.6,2.82996]
[1721618260527,2.3469,3534.2,3533.7,0.08393759]
[1721618265655,5.17641,3534.2,3533.7,0.08393759]
[1721618265955,5.17641,3534.2,3533.5,2.83005]
[1721618266156,5.17641,3534.2,3533.6,0.08395303]
[1721618270876,2.3469,3534.2,3533.6,0.08395303]
[1721618271047,7.33836372,3534.7,3533.6,0.08395303]
[1721618271048,2.82979,3533.9,3533.6,0.08395303]
[1721618271254,2.82979,3533.9,3532.9,2.83052]
[1721618271255,2.82985,3533.8,3533.0,2.8304]
[1721618271453,2.82985,3533.8,3533.7,0.08394857]
[1721618271928,2.82985,3533.8,3533.0,2.8304]
[1721618272130,2.82979,3533.9,3533.1,0.08401641]
[1721618272332,2.82979,3533.9,3532.9,2.83051]
[1721618272550,2.82979,3533.9,3533.0,0.08403873]
[1721618272749,2.82979,3533.9,3533.0,0.6127936]
[1721618273629,2.82979,3533.9,3533.2,2.83029]
[1721618274059,2.82979,3533.9,3533.3,0.08401857]
[1721618276381,2.4071,3534.0,3533.4,2.83012]
[1721618276594,5.23675,3534.0,3533.5,0.08400421]
[1721618276958,5.23675,3534.0,3533.3,2.83021]
[1721618277170,5.23675,3534.0,3533.4,0.08400864]
[1721618280475,2.82973,3533.9,3533.4,0.08400864]
[1721618280639,2.4071,3534.0,3533.4,0.08400864]
[1721618280844,2.82983,3533.8,3533.4,0.08400864]
[1721618281046,2.3582,3533.6,3532.9,2.83051]
[1721618281244,2.3582,3533.6,3533.5,0.08121861]
[1721618281449,2.3582,3533.6,3533.1,2.83035]
[1721618281645,2.3582,3533.6,3533.5,0.08121861]
[1721618281847,2.3582,3533.6,3533.1,2.83035]
[1721618282082,2.3582,3533.6,3533.5,0.08121861]
[1721618282269,2.3582,3533.6,3533.1,3.396436]
[1721618282478,2.3582,3533.6,3533.5,0.08121861]
[1721618282652,2.3582,3533.6,3533.1,3.396436]
[1721618282852,2.3582,3533.6,3533.5,0.08121861]
[1721618283084,2.3582,3533.6,3533.1,3.396436]
[1721618283294,2.3582,3533.6,3533.5,0.08121861]
[1721618283882,2.3582,3533.6,3533.1,2.83035]
[1721618284095,2.3582,3533.6,3533.5,0.08121861]
[1721618284286,5.18818,3533.6,3532.9,2.83047]
[1721618284490,5.18818,3533.6,3533.0,0.566114]
[1721618284652,2.3582,3533.6,3533.0,0.64738914]
[1721618287486,5.18818,3533.6,3533.0,0.64738914]
[1721618290173,2.3582,3533.6,3533.0,0.08127514]
[1721618290401,2.8301,3533.5,3532.7,2.83063]
[1721618290626,2.3093,3533.4,3532.8,0.08132926]
[1721618290788,5.13983,3532.9,3532.8,0.08132926]
[1721618290980,2.83069,3532.7,3532.0,5.1821]
[1721618291317,5.13983,3532.9,3532.1,2.91257845]
[1721618291618,5.13983,3532.9,3532.2,3.64055085]
[1721618292012,5.13983,3532.9,3532.3,0.08138582]
[1721618292013,2.83064,3532.8,3532.3,0.08138582]
[1721618292330,2.3093,3532.9,3532.3,0.08138582]
[1721618292490,2.3093,3532.9,3532.2,2.83108]
[1721618292879,2.3093,3532.9,3532.3,0.08138582]
[1721618293110,2.3093,3532.9,3532.3,0.6077224]
[1721618293814,5.13984,3532.9,3532.3,0.6077224]
[1721618294023,2.83062,3532.8,3532.3,0.6077224]
[1721618294193,2.8307,3532.7,3532.3,0.08138582]
[1721618294383,2.8307,3532.7,3532.0,5.18211]
[1721618294575,2.8307,3532.7,3532.1,0.08140845]
[1721618294784,5.13983,3532.9,3532.2,0.29126185]
[1721618294785,2.83077,3532.6,3532.2,0.29126185]
[1721618295124,2.83077,3532.6,3532.3,0.08138582]
[1721618295425,2.83077,3532.6,3531.9,2.83132]
[1721618296104,2.83077,3532.6,3532.0,0.08141976]
[1721618296818,5.13983,3532.9,3532.0,2.91265976]
[1721618296819,2.83065,3532.8,3532.0,2.91265976]
[1721618298128,2.8307,3532.7,3532.0,2.91265976]
[1721618298436,2.8307,3532.7,3532.1,0.57440598]
[1721618298797,2.8307,3532.7,3532.2,0.08139714]
[1721618306230,2.3093,3532.9,3532.2,2.91248714]
[1721618306433,7.33836372,3533.1,3532.2,5.40708714]
[1721618306763,7.33836372,3533.1,3532.4,2.83086]
[1721618307078,7.33836372,3533.1,3532.5,0.0816383]
[1721618307936,2.83047,3533.0,3532.3,0.59814931]
[1721618308154,2.83047,3533.0,3532.4,0.08164961]
[1721618308857,10.16874372,3533.1,3532.4,0.08164961]
[1721618309045,7.33836372,3533.1,3532.5,0.31743989]
[1721618309521,7.33836372,3533.1,3532.6,0.08162698]
[1721618310572,2.83047,3533.0,3532.6,0.08162698]
[1721618311270,2.83047,3533.0,3532.3,3.42914931]
[1721618311473,7.33836372,3533.1,3532.7,0.08161567]
[1721618311671,7.33836372,3533.1,3532.3,3.42914931]
[1721618311905,7.33836372,3533.1,3532.8,0.08160436]
[1721618312086,2.83039,3533.1,3532.3,2.831]
[1721618312590,2.83039,3533.1,3532.4,0.08164961]
[1721618316214,2.83046,3533.0,3532.4,0.08164961]
[1721618316896,2.83046,3533.0,3532.2,5.32567]
[1721618317109,2.83046,3533.0,3532.5,0.0816397]
[1721618317300,2.83046,3533.0,3532.3,0.815691]
[1721618317497,2.83046,3533.0,3532.6,0.08162838]
[1721618317809,2.83046,3533.0,3532.7,0.08161707]
[1721618318109,2.83046,3533.0,3532.3,3.646691]
[1721618318411,2.83046,3533.0,3532.4,0.6141291]
[1721618318618,2.83046,3533.0,3532.5,0.0816397]
[1721618318936,5.1969,3533.2,3532.5,0.0816397]
[1721618319141,2.3666,3533.2,3532.5,2.9124197]
[1721618319276,2.3666,3533.2,3532.5,3.87919668]
[1721618320248,7.33836372,3533.6,3533.2,2.83028]
[1721618320457,7.33836372,3533.6,3533.1,2.83034]
[1721618320611,7.33836372,3533.6,3533.3,0.08154374]
[1721618320810,7.33836372,3533.6,3533.1,2.83034]
[1721618321073,7.33836372,3533.6,3533.2,0.59675905]
[1721618322336,7.33836372,3533.6,3533.3,2.301]
[1721618322543,7.33836372,3533.6,3533.4,2.83007]
[1721618322929,7.33836372,3533.6,3533.5,0.0814171]
[1721618323619,7.33836372,3533.6,3533.5,2.9114671]
[1721618324020,2.82959,3534.1,3533.5,0.0814171]
[1721618324219,2.82959,3534.1,3533.3,2.301]
[1721618324425,2.82959,3534.1,3533.4,0.08140651]
[1721618324657,2.82965,3534.0,3533.4,0.08140651]
[1721618326864,2.82951,3534.2,3533.4,0.08140651]
[1721618327221,2.8296,3534.1,3533.4,0.08140651]
[1721618328235,2.8296,3534.1,3533.5,0.37077845]
[1721618328754,2.8296,3534.1,3533.6,0.08123743]
[1721618329975,2.82966,3534.0,3533.0,5.26215]
[1721618330128,2.3736,3533.9,3533.0,5.26215]
[1721618330475,2.82987,3533.8,3533.1,0.60750486]
[1721618330763,2.82987,3533.8,3533.1,0.526215]
[1721618330964,2.82987,3533.8,3533.2,0.08127855]
[1721618342553,2.82966,3534.0,3533.2,2.91155855]
[1721618342759,2.82966,3534.0,3533.3,0.58694736]
[1721618343000,2.82966,3534.0,3533.0,2.4317]
[1721618343359,2.82966,3534.0,3533.3,2.8302]
[1721618343681,2.82966,3534.0,3533.4,0.0812436]
[1721618345096,2.82966,3534.0,3533.5,2.4271]
[1721618345399,2.82966,3534.0,3533.6,0.08122099]
[1721618345584,5.3101,3534.2,3533.6,0.08122099]
[1721618345585,2.8296,3534.1,3533.6,0.08122099]
[1721618346923,2.82966,3534.0,3533.6,0.08122099]
[1721618348733,7.33836372,3534.3,3533.6,3.44503409]
[1721618349021,7.33836372,3534.3,3533.7,2.82984]
[1721618349221,7.33836372,3534.3,3533.8,0.08114228]
[1721618349412,7.33836372,3534.3,3533.9,2.2851]
[1721618349610,7.33836372,3534.3,3534.0,0.08111968]
[1721618350219,7.33836372,3534.3,3534.0,2.91075968]
[1721618351337,7.33836372,3534.3,3534.0,0.08111968]
[1721618352221,7.33836372,3534.3,3534.2,5.29889]
[1721618352445,7.33836372,3534.3,3534.2,5.37984244]
[1721618353536,7.33836372,3534.3,3534.2,2.91044244]
[1721618353747,2.82894,3534.9,3534.2,2.91044244]
[1721618354550,2.3694,3535.1,3534.3,2.3445]
[1721618354754,10.16689372,3535.4,3534.4,0.24254524]
[1721618355052,7.33836372,3535.4,3534.6,2.82916]
[1721618355225,7.33836372,3535.4,3534.8,2.3445]
[1721618355425,7.33836372,3535.4,3534.9,0.0795788]
[1721618357532,7.33836372,3535.8,3534.9,0.05657497]
[1721618357734,14.8187,3535.9,3535.2,2.82867]
[1721618357735,2.4087,3535.9,3535.2,2.82867]
[1721618358111,12.57989372,3536.2,3535.4,2.82851]
[1721618358345,12.57989372,3536.2,3535.4,2.82847]
[1721618358509,9.75196372,3536.2,3535.5,2.90513888]
[1721618358846,7.33836372,3536.2,3535.5,2.90507888]
[1721618359019,7.33836372,3536.2,3535.6,2.82831]
[1721618359223,7.33836372,3536.2,3535.7,0.0765173]